[Event "LEM Niedersachsen-Meister 2025"]
[Site "Verden"]
[Date "2025.01.04"]
[Round "6.5"]
[White "Lammers, Markus"]
[Black "Stelmaszyk, Nico"]
[Result "1-0"]
[ECO "D27"]
[WhiteElo "2304"]
[BlackElo "2403"]
[Annotator "TA"]
[PlyCount "91"]
[EventDate "2024.12.27"]
[EventType "swiss"]
[EventCountry "GER"]
[SourceTitle "playchess.com"]
[Source "ChessBase"]
[SourceQuality "1"]
[TimeControl "40/5400+30:1800+30"]

{[%evp 20,91,22,21,31,31,18,13,26,25,29,22,26,28,36,30,33,33,27,35,29,30,32,31,30,23,23,25,52,45,43,46,47,48,75,73,116,114,211,202,200,206,312,314,310,314,401,401,400,400,446,459,466,468,476,468,451,430,520,511,498,490,622,619,625,599,614,609,835,810,843,803,6648,6265]} 1. Nf3 {[%emt 0:00:05]} d5 {[%emt 0:00:14]} 2. c4 {[%emt 0:00:07]} e6 {[%emt 0:00:13]} 3. e3 {[%emt 0:00:07]} Nf6 {[%emt 0:00:05]} 4. d4 {[%emt 0:00:06]} dxc4 {[%emt 0:00:48]} 5. Bxc4 {[%emt 0:00:10]} a6 {[%emt 0:00:05]} 6. O-O {[%emt 0:02:11]} c5 {[%emt 0:00:55]} 7. dxc5 {[%emt 0:00:16]} Bxc5 {[%emt 0:00:13]} 8. Qxd8+ {[%emt 0:00:07]} Kxd8 {[%emt 0:00:04]} 9. Be2 {[%emt 0:00:39]} Ke7 {[%emt 0:01:21]} 10. Nbd2 {[%emt 0:02:05]} Rd8 {[%emt 0:04:42]} 11. Ne5 {[%emt 0:01:53]} Ke8 {[%emt 0:14:13]} 12. Rd1 {[%emt 0:18:40]} Nbd7 {[%emt 0:12:54]} 13. Nb3 {[%emt 0:05:45][%cal Od1d7]} Be7 {[%emt 0:16:23]} 14. Nc4 {[%emt 0:01:40]} b5 {[%emt 0:04:06]} 15. Nca5 {[%emt 0:07:25]} Ne5 {[%emt 0:04:18] Prevents Nc6.} 16. Bd2 {[%emt 0:13:15][%cal Bc1d2,Bd2e1,Be1c3][%mdl 32]} Ne4 {[%emt 0:04:41]} 17. Be1 {[%emt 0:00:02]} Rxd1 {[%emt 0:03:34]} 18. Rxd1 {[%emt 0:01:05]} Bd7 {[%emt 0:00:28]} 19. f3 {[%emt 0:03:19]} Nc5 {[%emt 0:01:53]} 20. Bc3 {[%emt 0:04:11]} f6 {[%emt 0:01:50]} 21. Nxc5 {[%emt 0:04:24]} Bxc5 {[%emt 0:00:30]} 22. Kf2 {[%emt 0:00:05]} Ra7 {[%emt 0:03:58]} 23. f4 {[%emt 0:02:22]} Ng6 {[%emt 0:10:28]} 24. g3 {[%emt 0:01:58]} Ne7 {[%emt 0:01:36]} 25. Bh5+ {[%emt 0:02:52]} g6 {[%emt 0:02:22]} 26. Bf3 {[%emt 0:00:14][%cal Oa5b7] Nb7! is the strong threat.} Nf5 {[%emt 0:07:48] [#]} 27. Nb7 $1 {[%emt 0:06:14]} ({Much weaker is} 27. Bxf6 Nxe3 28. Rc1 Bb6 $11) 27... Bb6 {[%emt 0:02:44] [#]} 28. Rd3 $1 $36 {[%emt 0:01:37][%mdl 2048] White is in control. White is more active.} Bc8 {[%emt 0:01:03]} (28... e5 $16 29. fxe5 fxe5 30. Bxe5 Bc8) 29. Nd6+ $18 {[%emt 0:06:56]} Nxd6 {[%emt 0:00:05]} 30. Rxd6 {[%emt 0:00:06]} Bc7 {[%emt 0:00:03]} (30... b4 $142 31. Bxf6 Ba5 32. Bc6+ Kf7) 31. Rc6 {[%emt 0:01:29]} Kd7 {[%emt 0:01:27]} 32. Bd4 {[%emt 0:01:00]} Rb7 {[%emt 0:00:48]} 33. Bxf6 {[%emt 0:03:36]} Rb6 {[%emt 0:00:09]} 34. Rc1 {[%emt 0:01:11]} Rd6 {[%emt 0:00:26]} 35. Ke2 {[%emt 0:02:25]} Ba5 {[%emt 0:00:11]} 36. Rc2 {[%emt 0:00:09] Wards off Rd2+} Bd8 {[%emt 0:00:44]} 37. Be5 {[%emt 0:01:03]} Rb6 {[%emt 0:00:05]} 38. Bd4 {[%emt 0:00:18]} Rd6 {[%emt 0:01:03]} 39. Bc5 {[%emt 0:00:13]} Rd5 {[%emt 0:00:04]} 40. e4 {[%emt 0:02:22]} (40. Bxd5 exd5 41. Bf8 h5 $18) 40... Rh5 {[%emt 0:00:45]} 41. Bxh5 {[%emt 0:32:28]} gxh5 {[%emt 0:30:11]} 42. Bd4 {[%emt 0:00:49]} Bb7 {[%emt 0:00:11]} 43. Kf3 {[%emt 0:00:17]} e5 {[%emt 0:00:06]} 44. Bxe5 {[%emt 0:00:15]} Ke6 {[%emt 0:00:05]} 45. Bd4 {[%emt 0:00:28]} Bxe4+ {[%emt 0:00:04]} 46. Kxe4 {[%emt 0:02:35]} 1-0

[Event "LEM Niedersachsen-Meister 2025"]
[Site "Verden"]
[Date "2025.01.04"]
[Round "6.6"]
[White "Giorgadze, Giorgi Gel"]
[Black "Lichtmannecker, Daniel"]
[Result "1/2-1/2"]
[ECO "C01"]
[WhiteElo "2569"]
[BlackElo "2171"]
[Annotator "TA"]
[PlyCount "30"]
[EventDate "2024.12.27"]
[EventType "swiss"]
[EventCountry "GER"]
[SourceTitle "playchess.com"]
[Source "ChessBase"]
[SourceQuality "1"]
[TimeControl "40/5400+30:1800+30"]

{[%evp 12,30,20,25,16,13,7,-5,0,0,0,0,0,0,0,0,0,0,-3,-8,-13]} 1. e4 {[%emt 0:00:01]} e6 {[%emt 0:05:58]} 2. d4 {[%emt 0:00:22]} d5 {[%emt 0:00:20]} 3. exd5 {[%emt 0:00:22]} exd5 {[%emt 0:00:09]} 4. Bd3 {[%emt 0:00:04]} Nc6 {[%emt 0:00:33]} 5. c3 {[%emt 0:04:12]} Bd6 {[%emt 0:01:21]} 6. Nf3 {[%emt 0:00:38]} Nge7 {[%emt 0:01:36]} 7. O-O {[%emt 0:00:41]} Bf5 {[%emt 0:03:23]} 8. Re1 {[%emt 0:00:53] The position is equal.} O-O {[%emt 0:02:12]} 9. Qc2 {[%emt 0:07:10]} Qd7 {[%emt 0:02:33]} 10. Nbd2 {[%emt 0:00:48][%cal Bb1d2,Bd2f1,Bf1e3][%mdl 32]} Rfe8 {[%emt 0:06:33]} 11. Nf1 {[%emt 0:00:34]} Bxd3 {[%emt 0:10:23]} 12. Qxd3 {[%emt 0:00:23]} Ng6 {[%emt 0:08:03]} 13. Ne3 {[%emt 0:10:14][%cal Od3f5]} Nce7 {[%emt 0:07:52]} 14. Bd2 {[%emt 0:04:40]} Nf4 {[%emt 0:07:58]} 15. Qc2 {[%emt 0:06:44]} c6 {[%emt 0:02:46] An uneventful encounter.   Weighted Error Value: White=0.02 (flawless) /Black=0.01 (flawless) .  OK:         	White=3     	Black=5} 1/2-1/2

[Event "LEM Niedersachsen-Meister 2025"]
[Site "Verden"]
[Date "2025.01.04"]
[Round "6.7"]
[White "Hoeffer, David"]
[Black "Bargsten, Justus"]
[Result "0-1"]
[ECO "D00"]
[WhiteElo "2322"]
[BlackElo "2228"]
[Annotator "TA"]
[PlyCount "96"]
[EventDate "2024.12.27"]
[EventType "swiss"]
[EventCountry "GER"]
[SourceTitle "playchess.com"]
[Source "ChessBase"]
[SourceQuality "1"]
[TimeControl "40/5400+30:1800+30"]

{[%evp 49,96,-44,-16,-95,-85,-88,-88,-103,-103,-110,-103,-103,-104,-123,-117,-130,-119,-135,-89,-71,-78,-96,-65,-79,-66,-155,-144,-248,-93,-88,0,-29986,-29987,-29986,-2150,-29991,-950,-928,-873,-29984,-1410,-29992,-1495,-1487,-1448,-2251,-2109,-29971,-5510]} 1. d4 {[%emt 0:00:03]} d5 {[%emt 0:00:22]} 2. Nc3 {[%emt 0:00:33]} Nf6 {[%emt 0:00:06]} 3. Bf4 {[%emt 0:00:03]} e6 {[%emt 0:00:14]} 4. Nb5 {[%emt 0:00:06]} Na6 {[%emt 0:00:04]} 5. e3 {[%emt 0:00:07]} Be7 {[%emt 0:00:03]} 6. Nf3 {[%emt 0:00:10] D00: 1 d4 d5: Unusual lines.} O-O {[%emt 0:00:19]} 7. h4 {[%emt 0:00:03] 7.h4 is the modern continuation.} c6 {[%emt 0:00:05]} 8. Nc3 {[%emt 0:00:05]} Qb6 {[%emt 0:00:24]} 9. a3 {[%emt 0:01:27]} c5 {[%emt 0:00:15]} 10. h5 {[%emt 0:03:40]} h6 $146 {[%emt 0:10:28]} ({Predecessor:} 10... Bd7 11. Rb1 h6 12. Ne5 Bc6 13. Bd3 Rad8 14. Rh3 Kh8 15. Qd2 Ne4 16. Nxe4 dxe4 {0-1 Abdusattorov,N (2716)-So,W (2753) Armageddon Grand Final L blitz 2023 (4.2)}) 11. Ne5 {[%emt 0:07:45]} Bd7 {[%emt 0:03:17]} 12. Nxd7 {[%emt 0:14:31]} Nxd7 {[%emt 0:00:12]} 13. Bb5 {[%emt 0:00:18]} Nf6 {[%emt 0:07:41]} 14. a4 {[%emt 0:01:07]} Qa5 {[%emt 0:06:31]} 15. Kf1 {[%emt 0:05:07]} Nb8 {[%emt 0:01:42]} 16. dxc5 {[%emt 0:05:27]} a6 {[%emt 0:04:31]} 17. Bd3 {[%emt 0:02:34]} Qxc5 {[%emt 0:07:39]} 18. g4 {[%emt 0:02:05]} Nh7 {[%emt 0:00:49]} 19. Qf3 {[%emt 0:02:20]} Nc6 {[%emt 0:01:52]} 20. Qg3 {[%emt 0:00:07]} f6 {[%emt 0:07:30]} 21. e4 {[%emt 0:05:27]} d4 {[%emt 0:02:33]} 22. Ne2 {[%emt 0:00:14]} Ng5 {[%emt 0:03:32]} 23. Bd2 {[%emt 0:00:54]} e5 {[%emt 0:01:02]} 24. Kg2 {[%emt 0:00:58]} Nb4 {[%emt 0:01:07]} 25. Bxb4 {[%emt 0:05:38]} Qxb4 {[%emt 0:00:08]} 26. f4 {[%emt 0:00:02]} (26. c3 $11 dxc3 27. bxc3) 26... exf4 $17 {[%emt 0:00:31]} 27. Qxf4 {[%emt 0:00:14]} Bd6 {[%emt 0:00:57]} (27... Qxb2 $2 28. Rhb1 $18) 28. Qf5 {[%emt 0:00:06]} Be5 {[%emt 0:02:38]} (28... Qxb2 $2 29. Rhb1 $18) 29. Rhd1 {[%emt 0:00:17]} Rac8 {[%emt 0:03:10]} (29... Qxb2 $2 30. Rdb1 $18) 30. Qf1 {[%emt 0:05:05]} Qd6 {[%emt 0:03:11]} (30... Qxb2 $2 31. Rdb1 Rxc2 32. Rxb2 Rxb2 33. Rb1 Rxb1 34. Qxb1 $18) 31. Ra3 {[%emt 0:01:02]} Qc6 {[%emt 0:04:24]} 32. Qf5 {[%emt 0:00:53]} Rfe8 {[%emt 0:00:23]} 33. Rb3 {[%emt 0:07:03] [#]} Rcd8 {[%emt 0:01:33]} (33... Qxa4 $6 34. Rxb7 Ne6 35. b3 $11) (33... Nf7 $142 $1 {[%cal Of7d6]} 34. Qg6 Nd6 (34... Qxa4 35. Rxb7 Rc7 36. b3 $11)) 34. Rb4 $17 {[%emt 0:06:44]} Kh8 {[%emt 0:04:04]} 35. Rc4 {[%emt 0:01:55]} Qb6 {[%emt 0:01:10]} 36. b4 {[%emt 0:01:24]} Bb8 {[%emt 0:01:47]} 37. Rf1 {[%emt 0:04:57]} (37. Rh1 $15) 37... Re5 $17 {[%emt 0:00:28]} 38. Qg6 {[%emt 0:00:21] [#]} (38. a5 $17 Qd6 39. Rxd4) 38... Qe6 $2 {[%emt 0:00:36]} (38... Qd6 $1 $19 {is more deadly. ...b5 is the strong threat.} 39. b5 Rxe4 (39... axb5 $2 40. axb5 $19)) 39. Rf5 $17 {[%emt 0:01:34]} (39. Rf4 Nf3 40. Kxf3 (40. Rxf3 $2 Rg5 $19) 40... Rg5 41. Rxd4 Rxd4 42. Nxd4 Qe5) 39... Rxe4 {[%emt 0:01:42]} (39... Nxe4 $2 40. Rxe5 (40. Rxd4 Rxd4 41. Nxd4 Qe8 $18) (40. Nxd4 Qg8 $18) 40... Qxe5 41. Qxe4 $18 (41. Bxe4 Qh2+ 42. Kf1 Qh3+ 43. Bg2 Qe3 $18)) ({Black should try} 39... Qe7 $17 {Strongly threatening ...Ne6.} 40. Rxd4 Rxd4 (40... Nxe4 $2 41. Rxe5 Bxe5 42. Qxe4 $18) 41. Nxd4 Qxb4 42. Rxe5 Bxe5) 40. Bxe4 $4 {[%emt 0:00:15][%mdl 8192]} (40. Rxg5 $11 Rxe2+ 41. Kf1 Re1+ 42. Kg2) 40... Qxe4+ {[%emt 0:00:21]} (40... Qxc4 41. Rxg5 Qxe2+ 42. Kg1 Qe1+ (42... fxg5 43. Qh7#) 43. Kg2 Qe2+ (43... fxg5 44. Qh7#) 44. Kg1 Qe1+ (44... fxg5 45. Qh7#) 45. Kg2 Qe2+ $11 (45... fxg5 46. Qh7#)) 41. Kf1 {[%emt 0:30:09]} Nh3 {[%emt 0:33:23]} (41... Qxg4 $2 42. Rxd4 Qh3+ (42... Rxd4 43. Qe8+ Kh7 44. Qg6+ Kh8 45. Qe8+ Kh7 46. Qg6+ Kh8 $11) 43. Ke1 $17) (41... Qh1+ $142 42. Ng1 Bh2 43. Ke2 Qxg1 (43... Bxg1 44. Rxf6 Be3 45. Qxg7+ Kxg7 46. Rg6+ Kf8 47. Rf6+ Ke8 48. Rxd4 Bxd4 49. Rf5 Qg2+ 50. Kd1 Bb2+ 51. Rd5 Rxd5+ 52. Ke1 Nf3#) 44. Rf1 Qe3+ (44... Qxg4+ $2 45. Ke1 $19) 45. Kd1 Ne4 46. Qxe4 Qxe4 47. a5 Qg2 (47... Qxg4+ 48. Kc1 Qe2 49. Rf2 Qxc4 50. Rxh2 Re8 51. Rd2 Qc3 52. Rd1 Re2 53. Kb1 Qxc2+ 54. Ka1 Qxd1#) 48. Rf5 Qg1+ (48... Qxg4+ 49. Kc1 Qxf5 50. Rc5 Be5 51. Rc4 d3 52. c3 d2+ 53. Kb2 d1=Q 54. Re4 Qf2+ 55. Ka3 Qa1+ 56. Kb3 Qfa2#) 49. Kd2 Re8 (49... Qxg4 50. Rc7 Bxc7 51. Rf2 Bf4+ 52. Rxf4 Qxf4+ 53. Kd1 Re8 54. b5 Qf1+ 55. Kd2 Qe1+ 56. Kd3 Qc3#) 50. Re5 Bxe5 (50... fxe5 51. c3 Qg2+ 52. Kc1 Rf8 53. Rc8 Rxc8 54. g5 Rf8 55. cxd4 Rf1#) (50... Bf4+ 51. Kd3 Qd1+ 52. Ke4 Rxe5+ 53. Kxf4 Qf1+ 54. Kg3 Re3+ 55. Kh4 Qh3#) 51. Rxd4 Bxd4 (51... Qxd4+ 52. Kc1 Qf4+ 53. Kd1 Bc3 54. g5 Qf1#) 52. Kd3 Qe3+ (52... Qxg4 53. Kc4 Re3 54. c3 Qe6+ 55. Kxd4 Qe5+ 56. Kc4 Rxc3#) 53. Kc4 Rc8+ 54. Kd5 Qe5#) 42. Ke1 {[%emt 0:09:33]} Re8 {[%emt 0:00:20]} (42... Nf4 $2 43. Rxf4 Qh1+ 44. Rf1 $18 (44. Kd2 Bxf4+ 45. Nxf4 Qf3 $18)) (42... Bg3+ $142 43. Kd2 Qe3+ 44. Kd1 d3 (44... Nf4 $2 45. Nxg3 Nxg6 46. g5 $19) 45. Qe8+ Rxe8 46. cxd3 Qxd3+ (46... Qxe2+ 47. Kc1 Qe1+ 48. Kb2 Re2+ 49. Rc2 Qxb4+ 50. Ka1 Qa3+ 51. Kb1 Re1+ 52. Rc1 Rxc1#) 47. Kc1 Qxc4+ 48. Kb1 Rxe2 (48... Qxe2 49. Rd5 Qe4+ 50. Kb2 Qxd5 51. Kc1 Re2 52. Kb1 Qh1#) (48... Qxb4+ 49. Kc2 Rxe2+ 50. Kd3 Nf4+ 51. Rxf4 Rd2+ 52. Ke3 Qxf4#) 49. Rxf6 Qxb4+ 50. Kc1 Qe1#) 43. Qxe8+ $19 {[%emt 0:00:11]} Qxe8 {[%emt 0:00:07]} 44. Rfc5 {[%emt 0:00:02]} Kh7 {[%emt 0:00:29]} ({And not} 44... Qxa4 45. Rc8+ Kh7 46. Rxb8 $11) (44... Qe3 $142 45. Rc8+ Kh7 46. Rxb8 Nf4 47. Kd1 Qxe2+ 48. Kc1 Qxc4 49. Rd8 d3 (49... Qxb4 $2 50. Rc8 $19) 50. Rxd3 Nxd3+ 51. Kd2 Nxb4 52. Ke3 Qc3+ (52... Nxc2+ 53. Kd2 Qb3 54. a5 Nd4 55. g5 fxg5 56. Ke1 Qa2 57. Kf1 Qh2 58. Ke1 Qe2#) 53. Kf2 Nd5 (53... Nxc2 54. g5 Qe3+ 55. Kf1 Qf3+ 56. Kg1 fxg5 57. a5 Ne3 58. Kh2 Qg2#) 54. g5 hxg5 (54... Qxc2+ 55. Kf3 fxg5 56. a5 Qd3+ 57. Kf2 Nf4 58. Kg1 Qf3 59. Kh2 Qg2#) 55. Kg2 Nf4+ (55... Qxc2+ 56. Kf3 Nf4 57. Ke3 Qd3+ 58. Kf2 Qe2+ 59. Kg3 Qg2#) 56. Kf2 Qd2+ (56... Nxh5 57. Kf1 Qxc2 58. Kg1 Qe2 59. a5 Nf4 60. Kh1 Qg2#) 57. Kf3 Qe2+ 58. Kg3 Qg2#) 45. Rc8 {[%emt 0:01:28]} Qe6 {[%emt 0:01:01]} (45... Qxa4 46. Rxb8 Qa1+ 47. Kd2 $11) (45... Bg3+ $142 46. Kd1 Qe3 (46... Qxa4 $2 47. Nxg3 Qa1+ 48. Kd2 $19) (46... Nf2+ $2 47. Kc1 $19) 47. Rh8+ Kxh8 48. Rc8+ Kh7 49. c4 d3 (49... Nf2+ {leads to mate.} 50. Kc2 Qxe2+ 51. Kb3 Nd3 52. Rh8+ Kxh8 53. c5 Nc1+ 54. Ka3 Qa2#) 50. Re8 Nf2+ (50... Qxe8 51. Nxg3 Qe3 52. Ne4 Qe2+ 53. Kc1 Qc2#) 51. Ke1 Ne4+ 52. Kf1 Qf2#) 46. Kd1 {[%emt 0:00:19]} Be5 {[%emt 0:01:37]} 47. Kc1 {[%emt 0:00:51]} Qxg4 {[%emt 0:00:18]} 48. Nc3 {[%emt 0:00:09]} Qg5+ {[%emt 0:00:16]} 0-1

[Event "LEM Niedersachsen-Meister 2025"]
[Site "Verden"]
[Date "2025.01.04"]
[Round "6.8"]
[White "Riemay, David"]
[Black "Bruns, Kai-Christian"]
[Result "1-0"]
[ECO "B21"]
[WhiteElo "2243"]
[BlackElo "2157"]
[Annotator "TA"]
[PlyCount "38"]
[EventDate "2024.12.27"]
[EventType "swiss"]
[EventCountry "GER"]
[SourceTitle "playchess.com"]
[Source "ChessBase"]
[SourceQuality "1"]
[TimeControl "40/5400+30:1800+30"]

{[%evp 12,38,-36,-45,-51,-43,-39,-33,-27,-15,0,-9,-3,-11,-4,-10,-7,-11,-2,-6,185,195,198,194,179,190,916,885,29988]} 1. e4 {[%emt 0:00:01]} c5 {[%emt 0:00:03]} 2. d4 {[%emt 0:00:05]} cxd4 {[%emt 0:00:04]} 3. c3 {[%emt 0:00:07]} dxc3 {[%emt 0:00:02]} 4. Nxc3 {[%emt 0:00:10]} e6 {[%emt 0:00:05]} 5. Nf3 {[%emt 0:00:09]} Nc6 {[%emt 0:00:05]} 6. Bc4 {[%emt 0:00:15]} a6 {[%emt 0:00:04]} 7. O-O {[%emt 0:00:15]} b5 {[%emt 0:00:04]} 8. Be2 {[%emt 0:00:14]} Bb7 {[%emt 0:00:47]} 9. Bf4 {[%emt 0:00:08] Wards off Qb8} d6 {[%emt 0:05:00]} 10. Rc1 {[%emt 0:00:35][%cal Oc3b5]} Be7 {[%emt 0:03:58]} 11. Nxb5 {[%emt 0:04:57]} e5 $1 {[%emt 0:05:13]} ({Don't play} 11... axb5 $6 12. Bxb5 e5 13. Rxc6 $16 (13. Bxc6+ Bxc6 14. Rxc6 exf4 $17)) 12. Be3 {[%emt 0:10:09]} axb5 {[%emt 0:23:21]} 13. Bxb5 {[%emt 0:00:07]} Qd7 $1 {[%emt 0:00:12][%cal Og8f6]} 14. Qc2 {[%emt 0:13:01]} Rc8 {[%emt 0:00:53] Strongly threatening ...Nf6.} 15. Rfd1 {[%emt 0:00:05][%cal Of3e5] and Nxe5! should not be overlooked} Nf6 $2 {[%emt 0:02:24] [#]} (15... Qc7 $1 $11) 16. Nxe5 $1 $18 {[%emt 0:03:05][%mdl 512]} dxe5 {[%emt 0:00:06]} 17. Rxd7 {[%emt 0:00:16]} Nxd7 {[%emt 0:07:48]} 18. Qa4 {[%emt 0:00:13]} Ndb8 $2 {[%emt 0:02:53]} (18... Ra8 19. Qb3 Rc8) 19. Qa7 {[%emt 0:00:46]} Bf8 {[%emt 0:02:00]} 1-0

[Event "LEM Niedersachsen-Meister 2025"]
[Site "Verden"]
[Date "2025.01.04"]
[Round "6.9"]
[White "Peters, Tom"]
[Black "Garbuszus, Juergen"]
[Result "1-0"]
[ECO "B51"]
[WhiteElo "2166"]
[BlackElo "2068"]
[Annotator "TA"]
[PlyCount "87"]
[EventDate "2024.12.27"]
[EventType "swiss"]
[EventCountry "GER"]
[SourceTitle "playchess.com"]
[Source "ChessBase"]
[SourceQuality "1"]
[TimeControl "40/5400+30:1800+30"]

{[%evp 9,87,-11,-7,-28,0,-29,45,-5,-8,-12,0,-10,0,-10,0,0,0,0,30,-48,8,0,0,-125,0,-25,61,46,41,-116,54,61,77,-122,-124,-396,-414,-454,-455,-354,-151,-487,-391,-479,457,351,700,683,678,338,328,317,316,337,337,340,302,323,327,346,333,300,775,761,764,500,560,560,777,748,751,731,781,777,695,791,940,905,1026,932]} 1. e4 {[%emt 0:03:56]} c5 {[%emt 0:00:04]} 2. Nf3 {[%emt 0:00:10]} Nc6 {[%emt 0:00:05]} 3. Nc3 {[%emt 0:00:12]} e5 {[%emt 0:01:16]} 4. Bb5 {[%emt 0:03:42]} d6 {[%emt 0:04:48]} 5. Bxc6+ {[%emt 0:02:37]} bxc6 {[%emt 0:00:01]} 6. h3 {[%emt 0:00:52]} f5 {[%emt 0:02:25]} 7. d3 {[%emt 0:01:15]} f4 {[%emt 0:05:43]} (7... fxe4 $11 8. Nxe4 Nf6) 8. g3 {[%emt 0:14:43]} ({Better is} 8. Nxe5 $1 $14 dxe5 9. Qh5+ Kd7 10. Qxe5) 8... fxg3 $11 {[%emt 0:04:04]} 9. fxg3 {[%emt 0:00:29]} Rb8 {[%emt 0:03:49]} 10. b3 {[%emt 0:09:14]} Nf6 {[%emt 0:05:36]} 11. Bd2 {[%emt 0:04:19]} Be7 {[%emt 0:04:05]} 12. Qe2 {[%emt 0:02:33]} O-O {[%emt 0:10:23]} 13. O-O-O {[%emt 0:01:59]} a5 {[%emt 0:03:41]} 14. a4 {[%emt 0:01:52]} (14. Na4 $11) 14... Kh8 {[%emt 0:04:37]} (14... Qb6 $15) 15. Nb1 {[%emt 0:07:42]} Be6 {[%emt 0:04:16][%cal Of6e4]} 16. Na3 {[%emt 0:04:08]} (16. Bc3 $11 {remains equal.}) 16... Qc7 {[%emt 0:08:31]} (16... Bxb3 $1 $17 17. cxb3 Qb6) 17. Nc4 {[%emt 0:02:39]} Ra8 {[%emt 0:01:07]} ({Black should play} 17... Nxe4 $1 $11 18. dxe4 (18. Qxe4 Bd5 $19) 18... Bxc4 19. bxc4 Qb7) 18. g4 {[%emt 0:03:16] White is more active.} Nd7 {[%emt 0:01:09]} 19. Rdg1 $2 {[%emt 0:03:54]} (19. Rhf1 $14 {keeps the upper hand.}) 19... Bxc4 $2 {[%emt 0:06:28]} (19... d5 $1 $17 20. exd5 cxd5 21. Ncxe5 c4) 20. dxc4 $14 {[%emt 0:00:39]} d5 $1 {[%emt 0:00:01] [#]} 21. exd5 $2 {[%emt 0:01:38]} (21. cxd5 $2 cxd5 (21... c4 $2 22. Bg5 $17) 22. exd5 c4 23. bxc4 (23. Qxc4 $2 Qxc4 24. bxc4 Rxf3 $19) 23... Rab8 $17) (21. Rf1 $1 $16 {and life is bright.}) 21... cxd5 $17 {[%emt 0:00:09]} 22. cxd5 $2 {[%emt 0:00:16][%mdl 8192] [#]} (22. Ng5 $17 {was necessary.} e4 (22... Bxg5 23. Bxg5 dxc4 24. Qxc4 $17) 23. h4 (23. cxd5 $2 Qe5 $19)) 22... c4 $1 $19 {[%emt 0:00:07][%mdl 512]} 23. bxc4 {[%emt 0:07:31]} (23. Qxc4 Qxc4) 23... Rab8 {[%emt 0:01:33]} 24. Bc3 {[%emt 0:00:54]} Ba3+ {[%emt 0:07:38]} (24... Qb6 $19 {has better winning chances.} 25. g5 (25. Bxe5 $2 Nxe5 26. Qxe5 Rxf3 $19) 25... Bb4 26. Bxb4 (26. Bxe5 Nxe5 27. Qxe5 Qf2 $19) 26... Qxb4) 25. Kd2 $2 {[%emt 0:01:38] [#]} (25. Kd1 $17 {nothing else works.} Nb6 26. Qd3 (26. Bxa5 $2 Nxc4 27. Qd3 Qc5 $19) (26. Qxe5 $2 Bd6 $19)) 25... e4 $1 {[%emt 0:00:32][%mdl 512]} 26. Ng5 {[%emt 0:07:16]} (26. Qxe4 Bd6 (26... Rf4 27. Qd3 $15) 27. Qd4 Nc5 (27... Rxf3 28. Qxg7#) 28. Qxg7+ Qxg7 29. Bxg7+ Kxg7 $19) (26. Nd4 Nb6) 26... Bc5 $4 {[%emt 0:02:50][%mdl 8192]} (26... Rfe8 $19 {avoids the disaster. ...e3+ is the strong threat.} 27. Ra1 (27. Nxe4 $2 {is the wrong capture.} Nc5 $19) 27... Nb6) 27. Qxe4 {[%emt 0:03:47][%csl Gg5][%cal Re4h7]} Rf2+ $2 {[%emt 0:02:59]} (27... Qf4+ 28. Qxf4 Rxf4 29. Bxg7+ (29. Rb1 Bb4 $18) 29... Kxg7) 28. Kd3 $18 {[%emt 0:00:19][%csl Gg5][%cal Re4h7]} Nf8 {[%emt 0:04:29]} 29. Qe5 {[%emt 0:04:53]} (29. Be5 $142 Qe7 30. Rf1 (30. Bxb8 Qxg5 31. Rd1 Qf6 $11)) 29... Bd6 {[%emt 0:01:26] [#]} 30. Qxg7+ $1 {[%emt 0:01:53]} Qxg7 {[%emt 0:00:05]} 31. Bxg7+ {[%emt 0:00:04]} Kxg7 {[%emt 0:00:03]} 32. Ne4 {[%emt 0:00:05][%csl LRd6,LRf2]} Rf3+ {[%emt 0:07:53]} 33. Ke2 {[%emt 0:00:06]} Rf6 {[%emt 0:02:09]} 34. Nxf6 {[%emt 0:00:05]} Kxf6 {[%emt 0:00:04]} 35. Rf1+ {[%emt 0:01:33]} Ke5 $2 {[%emt 0:00:24]} (35... Ke7 36. Rf3 Rb4) 36. Kd3 {[%emt 0:00:14][%csl Gg4][%cal Rf1f5]} Bc5 {[%emt 0:00:58]} 37. Rf5+ {[%emt 0:00:16]} Kd6 {[%emt 0:00:08][%cal Be5d6,Bd6d7,Bd7d8,Bd8e8][%mdl 32]} 38. Re1 {[%emt 0:00:19]} Ng6 {[%emt 0:00:54]} 39. Re6+ {[%emt 0:00:16]} Kd7 {[%emt 0:00:44]} 40. Rf7+ {[%emt 0:00:46]} Kd8 {[%emt 0:00:05]} 41. h4 {[%emt 0:36:15][%cal Bh3h4,Bh4h5][%mdl 32]} ({Not} 41. Rxh7 Nf4+ 42. Ke4 Nxe6 43. dxe6 Bf8 $18) 41... Rb1 {[%emt 0:31:46]} 42. h5 {[%emt 0:00:35]} Nf8 {[%emt 0:00:22]} 43. Ra6 {[%emt 0:00:00] Intending Ra8+ and mate.} Ke8 {[%emt 0:00:00]} 44. Rg7 {[%emt 0:00:00]} 1-0

[Event "LEM Niedersachsen-Meister 2025"]
[Site "Verden"]
[Date "2025.01.04"]
[Round "6.10"]
[White "Pubantz, Jan"]
[Black "Drygala, Lars"]
[Result "1-0"]
[ECO "E18"]
[WhiteElo "2339"]
[BlackElo "2067"]
[Annotator "TA"]
[PlyCount "41"]
[EventDate "2024.12.27"]
[EventType "swiss"]
[EventCountry "GER"]
[SourceTitle "playchess.com"]
[Source "ChessBase"]
[SourceQuality "1"]
[TimeControl "40/5400+30:1800+30"]

{[%evp 20,41,29,35,33,41,83,75,72,30,95,89,112,101,181,176,220,191,191,185,187,182,379,379]} 1. d4 {[%emt 0:00:25]} Nf6 {[%emt 0:00:09]} 2. c4 {[%emt 0:00:22]} e6 {[%emt 0:00:10]} 3. g3 {[%emt 0:00:16]} d5 {[%emt 0:00:17]} 4. Bg2 {[%emt 0:00:12]} Be7 {[%emt 0:00:12]} 5. Nf3 {[%emt 0:00:08]} O-O {[%emt 0:00:10]} 6. O-O {[%emt 0:00:05]} b6 {[%emt 0:02:43]} 7. Nc3 {[%emt 0:03:53]} Bb7 {[%emt 0:00:13]} 8. cxd5 {[%emt 0:01:59]} exd5 {[%emt 0:00:21]} 9. Bf4 {[%emt 0:00:12]} Na6 {[%emt 0:01:42]} 10. Rc1 {[%emt 0:00:39]} c5 {[%emt 0:00:41]} 11. dxc5 {[%emt 0:22:13]} bxc5 {[%emt 0:03:45]} 12. Qb3 {[%emt 0:01:16]} Qb6 {[%emt 0:06:46]} 13. Qxb6 {[%emt 0:01:55]} axb6 {[%emt 0:00:08] White is better.} 14. Ne5 {[%emt 0:00:02]} Nb8 {[%emt 0:08:25]} (14... Rfb8 $11) 15. a3 {[%emt 0:03:56]} Rd8 {[%emt 0:02:03]} 16. Rfd1 {[%emt 0:01:33] White is more active.} Ra5 {[%emt 0:06:08] [#]} (16... Ra7 $16) 17. Nc4 $1 $18 {[%emt 0:13:31]} dxc4 {[%emt 0:04:51]} 18. Rxd8+ {[%emt 0:00:58]} Bxd8 {[%emt 0:00:08]} 19. Bxb7 {[%emt 0:00:08]} Nbd7 {[%emt 0:01:22]} 20. Rd1 {[%emt 0:01:42]} Ra7 $2 {[%emt 0:02:51] [#]} (20... Be7 21. Bc6 (21. a4 Nf8 $18) 21... Nf8) 21. Bc6 {[%emt 0:03:11] Weighted Error Value: White=0.06 (flawless) /Black=0.64.  Mistake:       	---       	Black=3      Inaccurate:     	White=1     	Black=1      OK:         	White=5     	---        Strong:       	White=1     	---} 1-0